fUSD/lending_fUSD_20260108
["ID","MTS","AMOUNT","RATE_DAILY","PERIOD"]
[400796520,1767832241555,-500.0,0.00015657,2]
[400796521,1767832241564,-255.0,0.00015663,2]
[400796522,1767832241573,-414.2,0.00015668,2]
[400796523,1767832241582,-960.0,0.00015704,2]
[400796524,1767832241591,-200.67704286,0.00015707,2]
[400796525,1767832241601,-1002.0,0.00015711,2]
[400796526,1767832241610,-500.0,0.00015711,2]
[400796527,1767832241620,-499.0,0.00015711,2]
[400796528,1767832241631,-500.0,0.00015711,2]
[400796530,1767832241640,-1000.0,0.00015724,2]
[400796532,1767832241650,-166.66,0.00015752,2]
[400796534,1767832241659,-960.0,0.00015759,2]
[400796536,1767832241668,-1002.0,0.00015766,2]
[400796539,1767832241683,-500.0,0.00015766,2]
[400796541,1767832241693,-499.0,0.00015766,2]
[400796542,1767832241702,-500.0,0.00015766,2]
[400796544,1767832241711,-836.52086768,0.00015789,2]
[400796547,1767832241722,-11726.32467954,0.00015789,2]
[400796548,1767832241731,-15916.11538226,0.00015789,2]
[400796550,1767832241741,-2045.30003102,0.00015807,2]
[400796552,1767832241751,-960.0,0.00015814,2]
[400796554,1767832241761,-1002.0,0.00015821,2]
[400796557,1767832241772,-500.0,0.00015821,2]
[400796559,1767832241782,-499.0,0.00015821,2]
[400796560,1767832241792,-500.0,0.00015821,2]
[400796562,1767832241802,-619.51019964,0.00015832,2]
[400796565,1767832241812,-1547.27,0.00015832,2]
[400796567,1767832241821,-960.0,0.00015869,2]
[400796569,1767832241831,-1002.0,0.00015876,2]
[400796571,1767832241841,-500.0,0.00015876,2]
[400796573,1767832241851,-499.0,0.00015876,2]
[400796574,1767832241861,-500.0,0.00015876,2]
[400796577,1767832241871,-882.0,0.0001589,2]
[400796579,1767832241883,-195.0,0.00015897,2]
[400796581,1767832241892,-195.0,0.00015897,2]
[400796583,1767832241901,-250.0,0.00015897,2]
[400796585,1767832241911,-195.0,0.00015897,2]
[400796587,1767832241922,-195.0,0.00015897,2]
[400796589,1767832241932,-300.0,0.00015897,2]
[400796591,1767832241941,-500.0,0.00015899,2]
[400796593,1767832241951,-500.0,0.00015899,2]
[400796595,1767832241961,-500.0,0.00015899,2]
[400796597,1767832241971,-1913.78107436,0.000159,2]
[400796599,1767832241980,-1913.78107436,0.000159,2]
[400796601,1767832241991,-1913.78107436,0.000159,2]
[400796603,1767832242000,-1913.78107436,0.000159,2]
[400796605,1767832242009,-1913.78107436,0.000159,2]
[400796607,1767832242019,-1000.0,0.00015918,2]
[400796609,1767832242029,-960.0,0.00015924,2]
[400796611,1767832242038,-420.0,0.00015924,2]
[400796613,1767832242047,-1002.0,0.00015931,2]
[400796615,1767832242058,-500.0,0.00015931,2]
[400796617,1767832242068,-499.0,0.00015931,2]
[400796619,1767832242078,-500.0,0.00015931,2]
[400796621,1767832242088,-960.0,0.00015978,2]
[400796623,1767832242097,-1002.0,0.00015985,2]
[400796625,1767832242107,-576.0,0.00015985,2]
[400796627,1767832242117,-499.0,0.00015985,2]
[400796629,1767832242127,-240.61097423,0.00015985,2]
[400796631,1767832242137,-151.0,0.00015997,2]
[400796633,1767832242146,-1680.0,0.00015998,2]
[400796635,1767832242156,-132747.14261672,0.00016,2]
[400796637,1767832242166,-239772.54532992,0.00016,4]
[400796639,1767832242175,-249.063448,0.00016,2]
[400796641,1767832242185,-960.0,0.00016033,2]
[400796643,1767832242195,-1002.0,0.0001604,2]
[400796645,1767832242204,-499.0,0.0001604,2]
[400796647,1767832242213,-151.0,0.00016047,2]
[400796649,1767832242224,-620.0,0.00016047,2]
[400796651,1767832242234,-1500.0,0.00016047,2]
[400796653,1767832242243,-151.55763012,0.00016047,2]
[400796655,1767832242253,-1500.0,0.00016047,2]
[400796658,1767832242267,-1500.0,0.00016047,2]
[400796660,1767832242282,-1500.0,0.00016047,2]
[400796662,1767832242292,-1500.0,0.00016047,2]
[400796664,1767832242302,-1500.0,0.00016047,2]
[400796666,1767832242313,-1500.0,0.00016047,2]
[400796668,1767832242322,-1500.0,0.00016047,2]
[400796670,1767832242333,-1500.0,0.00016047,2]
[400796672,1767832242342,-1500.0,0.00016047,2]
[400796674,1767832242352,-500.0,0.00016047,2]
[400796676,1767832242362,-1500.0,0.00016047,2]
[400796678,1767832242372,-448.72451731,0.00016047,2]
[400796680,1767832242382,-500.0,0.00016047,2]
[400796682,1767832242391,-574.12855637,0.00016047,2]
[400796684,1767832242403,-500.0,0.00016047,2]
[400796686,1767832242415,-500.0,0.00016047,2]
[400796688,1767832242424,-500.0,0.00016047,2]
[400796690,1767832242435,-500.0,0.00016047,2]
[400796692,1767832242444,-500.0,0.00016047,2]
[400796694,1767832242455,-250.0,0.00016047,2]
[400796696,1767832242464,-500.0,0.00016047,2]
[400796698,1767832242474,-500.0,0.00016047,2]
[400796700,1767832242485,-500.0,0.00016047,2]
[400796702,1767832242494,-500.0,0.00016047,2]
[400796704,1767832242504,-250.0,0.00016047,2]
[400796707,1767832242514,-404.25522477,0.00016047,2]
[400796709,1767832242523,-500.0,0.00016047,2]
[400796711,1767832242532,-500.0,0.00016047,2]
[400796712,1767832242542,-500.0,0.00016047,2]
[400796715,1767832242551,-500.0,0.00016047,2]
[400796717,1767832242562,-500.0,0.00016047,2]
[400796719,1767832242572,-500.0,0.00016047,2]
[400796721,1767832242581,-500.0,0.00016047,2]
[400796723,1767832242591,-500.0,0.00016047,2]
[400796725,1767832242600,-500.0,0.00016047,2]
[400796727,1767832242610,-500.0,0.00016047,2]
[400796729,1767832242620,-500.0,0.00016047,2]
[400796731,1767832242630,-500.0,0.00016047,2]
[400796733,1767832242639,-500.0,0.00016047,2]
[400796735,1767832242649,-500.0,0.00016047,2]
[400796737,1767832242658,-500.0,0.00016047,2]
[400796739,1767832242668,-500.0,0.00016047,2]
[400796741,1767832242677,-500.0,0.00016047,2]
[400796743,1767832242687,-500.0,0.00016047,2]
[400796745,1767832242697,-500.0,0.00016047,2]
[400796747,1767832242707,-500.0,0.00016047,2]
[400796749,1767832242716,-500.0,0.00016047,2]
[400796751,1767832242726,-500.0,0.00016047,2]
[400796753,1767832242735,-500.0,0.00016047,2]
[400796755,1767832242745,-500.0,0.00016047,2]
[400796757,1767832242755,-578.20924308,0.00016047,2]
[400796759,1767832242765,-250.0,0.00016047,2]
[400796761,1767832242776,-250.0,0.00016047,2]
[400796763,1767832242786,-250.0,0.00016047,2]
[400796765,1767832242796,-250.0,0.00016047,2]
[400796767,1767832242805,-250.0,0.00016047,2]
[400796770,1767832242815,-250.0,0.00016047,2]
[400796772,1767832242826,-250.0,0.00016047,2]
[400796774,1767832242835,-250.0,0.00016047,2]
[400796776,1767832242844,-200.0,0.00016047,2]
[400796778,1767832242854,-250.0,0.00016047,2]
[400796780,1767832242864,-207.4,0.00016047,2]
[400796782,1767832242873,-250.0,0.00016047,2]
[400796784,1767832242882,-215.0738,0.00016047,2]
[400796786,1767832242892,-223.0315306,0.00016047,2]
[400796788,1767832242901,-231.28369723,0.00016047,2]
[400796790,1767832242911,-2000.0,0.00016047,2]
[400796792,1767832242921,-239.84119403,0.00016047,2]
[400796794,1767832242930,-2000.0,0.00016047,2]
[400796796,1767832242940,-248.71531821,0.00016047,2]
[400796798,1767832242950,-2000.0,0.00016047,2]
[400796800,1767832242959,-257.91778498,0.00016047,2]
[400796802,1767832242969,-2000.0,0.00016047,2]
[400796804,1767832242979,-267.46074303,0.00016047,2]
[400796806,1767832242989,-2000.0,0.00016047,2]
[400796808,1767832242999,-277.35679052,0.00016047,2]
[400796810,1767832243008,-2000.0,0.00016047,2]
[400796812,1767832243018,-151.0,0.00016047,2]
[400796814,1767832243027,-2000.0,0.00016047,2]
[400796816,1767832243039,-2000.0,0.00016047,2]
[400796818,1767832243048,-2000.0,0.00016047,2]
[400796820,1767832243058,-2000.0,0.00016047,2]
[400796822,1767832243068,-2000.0,0.00016047,2]
[400796824,1767832243078,-322.6107,0.00016047,2]
[400796827,1767832243087,-166.66,0.00016058,2]
[400796829,1767832243097,-989.85419461,0.00016085,2]
[400796831,1767832243106,-960.0,0.00016088,2]
[400796833,1767832243116,-1002.0,0.00016095,2]
[400796834,1767832243127,-499.0,0.00016095,2]
[400796837,1767832243137,-1547.27,0.00016105,2]
[400796839,1767832243148,-9999.99,0.00016116,2]
[400796841,1767832243158,-1000.0,0.00016133,2]
[400796843,1767832243168,-11726.32467954,0.00016141,2]
[400796845,1767832243179,-15916.11538226,0.00016141,2]
[400796847,1767832243189,-960.0,0.00016143,2]
[400796849,1767832243198,-1002.0,0.0001615,2]
[400796851,1767832243209,-499.0,0.0001615,2]
[400796853,1767832243219,-250.0,0.00016164,3]
[400796855,1767832243229,-1500.0,0.00016168,2]
[400796857,1767832243239,-1500.0,0.00016168,2]
[400796860,1767832243250,-529.13192156,0.00016168,2]
[400796861,1767832243259,-1500.0,0.00016168,2]
[400796864,1767832243269,-321.82288534,0.00016168,2]
[400796866,1767832243279,-949.69083076,0.00016168,2]
[400796868,1767832243289,-1501.70391837,0.00016168,2]
[400796870,1767832243299,-1500.0,0.00016168,2]
[400796872,1767832243309,-1500.0,0.00016168,2]
[400796874,1767832243319,-1000.0,0.00016168,2]
[400796876,1767832243328,-1500.0,0.00016168,2]
[400796878,1767832243338,-1500.0,0.00016168,2]
[400796879,1767832243347,-1500.0,0.00016168,2]
[400796881,1767832243357,-509.96734995,0.00016168,2]
[400796883,1767832243367,-1500.0,0.00016168,2]
[400796886,1767832243377,-1128.37348131,0.00016168,2]
[400796888,1767832243387,-960.0,0.00016198,2]
[400796889,1767832243397,-150.0,0.000162,2]
[400796892,1767832243411,-5000.00308646,0.000162,5]
[400796894,1767832243421,-1002.0,0.00016204,2]
[400796896,1767832243431,-499.0,0.00016204,2]
[400796898,1767832243440,-1000.0,0.00016207,2]
[400796900,1767832243451,-206.2528324,0.00016208,2]
[400796902,1767832243461,-960.0,0.00016252,2]
[400796904,1767832243471,-1021.03877525,0.00016259,2]
[400796906,1767832243481,-521.73157926,0.00016259,2]
[400796908,1767832243491,-150.0,0.00016267,2]
[400796910,1767832243500,-500.0,0.00016269,2]
[400796912,1767832243510,-423.57,0.00016269,2]
[400796914,1767832243519,-1100.0,0.00016275,2]
[400796916,1767832243528,-1000.0,0.00016293,2]
[400796918,1767832243538,-960.0,0.00016307,2]
[400796920,1767832243547,-836.52086768,0.00016317,2]
[400796922,1767832243557,-150.0,0.00016333,2]
[400796924,1767832243566,-200.0,0.0001634,2]
[400796926,1767832243576,-960.0,0.00016362,2]
[400796927,1767832243585,-1000.0,0.00016362,2]
[400796929,1767832243595,-1547.27,0.00016379,2]
[400796931,1767832243605,-414.2,0.0001638,2]
[400796934,1767832243615,-150.0,0.000164,2]
[400796936,1767832243624,-162.0,0.000164,2]
[400796938,1767832243634,-960.0,0.00016417,2]
[400796940,1767832243644,-419.33594592,0.00016437,2]
[400796942,1767832243655,-500.0,0.00016437,2]
[400796944,1767832243665,-500.0,0.00016438,2]
[400796946,1767832243674,-19414.61,0.00016438,2]
[400796948,1767832243684,-800.0,0.00016438,2]
[400796950,1767832243693,-250.0,0.00016438,3]
[400796952,1767832243703,-165.16,0.0001644,2]
[400796954,1767832243713,-1000.0,0.00016465,2]
[400796956,1767832243723,-150.0,0.00016467,2]
[400796958,1767832243733,-960.0,0.00016471,2]
[400796960,1767832243742,-1000.0,0.0001649,2]
[400796962,1767832243752,-500.0,0.00016493,2]
[400796964,1767832243762,-11726.32467954,0.00016493,2]
[400796966,1767832243772,-15916.11538226,0.00016493,2]
[400796968,1767832243781,-1000.0,0.00016494,2]
[400796970,1767832243791,-549.9,0.00016504,2]
[400796972,1767832243800,-1000.0,0.00016515,2]
[400796974,1767832243809,-966.2212164,0.00016526,2]
[400796976,1767832243818,-150.0,0.00016533,2]
[400796978,1767832243828,-1000.0,0.00016544,2]
[400796980,1767832243838,-500.0,0.00016548,2]
[400796982,1767832243847,-1000.0,0.00016569,2]
[400796984,1767832243856,-151.0,0.00016595,2]
[400796986,1767832243866,-595.37131296,0.00016595,2]
[400796988,1767832243875,-154.16307501,0.00016595,2]
[400796990,1767832243885,-150.0,0.000166,2]
[400796992,1767832243895,-188.33554362,0.00016602,2]
[400796995,1767832243905,-1000.0,0.00016612,2]
[400796997,1767832243914,-500.0,0.00016643,2]
[400796998,1767832243924,-500.0,0.00016643,2]
[400797000,1767832243933,-500.0,0.00016643,2]
[400797003,1767832243943,-336.03289894,0.00016643,2]
[400797004,1767832243954,-500.0,0.00016643,2]
[400797007,1767832243965,-500.0,0.00016643,2]
[400797008,1767832243975,-628.50709886,0.00016643,2]
[400797010,1767832243985,-1547.27,0.00016653,2]
[400797013,1767832243995,-1000.0,0.00016654,2]
[400797015,1767832244005,-150.0,0.00016667,2]
[400797017,1767832244014,-1000.0,0.00016677,2]
[400797019,1767832244025,-258.65739244,0.0001668,2]
[400797021,1767832244035,-165.13,0.00016712,2]
[400797023,1767832244044,-2000.0,0.00016716,2]
[400797025,1767832244054,-2000.0,0.00016716,2]
[400797028,1767832244064,-1500.0,0.00016716,2]
[400797030,1767832244074,-2000.0,0.00016716,2]
[400797032,1767832244084,-2000.0,0.00016716,2]
[400797034,1767832244094,-2000.0,0.00016716,2]
[400797036,1767832244103,-2000.0,0.00016716,2]
[400797038,1767832244113,-2000.0,0.00016716,2]
[400797040,1767832244123,-1176.00349903,0.00016716,2]
[400797042,1767832244133,-348.0,0.0001672,2]
[400797044,1767832244143,-310.4,0.00016722,2]
[400797046,1767832244153,-157.15193471,0.0001673,2]
[400797048,1767832244164,-150.0,0.00016733,2]
[400797050,1767832244174,-1000.0,0.00016755,2]
[400797052,1767832244184,-150.0,0.000168,2]
[400797054,1767832244194,-1000.0,0.00016817,2]
[400797056,1767832244204,-1000.0,0.00016822,2]
[400797058,1767832244214,-836.52086768,0.00016845,2]
[400797061,1767832244224,-11726.32467954,0.00016845,2]
[400797063,1767832244234,-15916.11538226,0.00016845,2]
[400797065,1767832244244,-150.0,0.00016867,2]
[400797067,1767832244254,-433.0,0.0001687,2]
[400797069,1767832244263,-1000.0,0.00016894,2]
[400797071,1767832244273,-262.45162546,0.000169,2]
[400797072,1767832244283,-373.0,0.00016904,2]
[400797075,1767832244294,-634.29540262,0.00016917,2]
[400797077,1767832244304,-1547.27,0.00016927,2]
[400797079,1767832244314,-150.0,0.00016933,2]
[400797081,1767832244324,-1000.0,0.00016967,2]
[400797083,1767832244333,-549.9,0.00016976,2]
[400797085,1767832244343,-500.0,0.00016986,2]
[400797087,1767832244353,-450.63605817,0.00016986,2]
[400797089,1767832244363,-500.0,0.00016986,2]
[400797091,1767832244374,-500.0,0.00016986,2]
[400797093,1767832244384,-500.0,0.00016986,2]
[400797095,1767832244394,-500.0,0.00016986,2]
[400797097,1767832244405,-425663.68,0.00016986,2]
[400797099,1767832244420,-150.0,0.00017,2]
[400797101,1767832244429,-500.001539,0.00017,2]
[400797103,1767832244440,-1000.0,0.00017017,2]
[400797105,1767832244452,-304.2281947,0.00017043,2]
[400797107,1767832244462,-150.0,0.00017067,2]
[400797109,1767832244473,-1000.0,0.00017076,2]
[400797112,1767832244483,-1100.0,0.00017089,2]
[400797113,1767832244493,-1000.0,0.00017089,2]
[400797116,1767832244503,-414.2,0.00017092,2]
[400797118,1767832244513,-1000.0,0.00017098,2]
[400797119,1767832244524,-262.45162544,0.000171,2]
[400797121,1767832244535,-1000.0,0.00017112,2]
[400797123,1767832244545,-1000.0,0.0001713,2]
[400797125,1767832244554,-150.0,0.00017133,2]
[400797127,1767832244563,-617.40005154,0.00017143,2]
[400797130,1767832244574,-1000.0,0.00017191,2]
[400797132,1767832244584,-222.95362607,0.00017191,2]
[400797134,1767832244594,-857.71504644,0.00017194,2]
[400797135,1767832244604,-11726.32467954,0.00017196,2]
[400797136,1767832244614,-15916.11538226,0.00017196,2]
[400797137,1767832244624,-150.0,0.000172,2]
[400797138,1767832244636,-1547.27,0.00017201,2]
[400797139,1767832244646,-150.0,0.00017215,2]
[400797140,1767832244657,-150.0,0.00017215,2]
[400797141,1767832244666,-150.0,0.00017215,2]
[400797142,1767832244676,-152.36175589,0.00017215,2]
[400797143,1767832244686,-150.0,0.00017215,2]
[400797144,1767832244696,-827.5,0.00017225,2]
[400797145,1767832244707,-1000.0,0.00017252,2]
[400797146,1767832244717,-2000.0,0.00017264,2]
[400797148,1767832244728,-2500.0,0.00017264,2]
[400797150,1767832244738,-2500.0,0.00017264,2]
[400797152,1767832244748,-2500.0,0.00017264,2]
[400797154,1767832244758,-870.47980866,0.00017264,2]
[400797156,1767832244768,-1000.0,0.00017266,2]
[400797158,1767832244777,-150.0,0.00017267,2]
[400797160,1767832244788,-150.0,0.0001727,2]
[400797162,1767832244797,-179.07668943,0.0001727,2]
[400797164,1767832244807,-1000.0,0.00017285,2]
[400797166,1767832244816,-827.5,0.00017295,2]
[400797168,1767832244826,-262.45162544,0.000173,2]
[400797170,1767832244837,-300.0,0.00017318,2]
[400797172,1767832244847,-200.0,0.00017325,2]
[400797174,1767832244857,-157.15193471,0.00017328,2]
[400797176,1767832244867,-150.0,0.00017333,2]
[400797178,1767832244877,-1155.0,0.00017342,2]
[400797180,1767832244887,-5453.0,0.00017346,2]
[400797182,1767832244897,-1688.95959214,0.0001735,2]
[400797184,1767832244907,-1241.95354039,0.0001735,2]
[400797186,1767832244917,-300.0,0.00017359,2]
[400797188,1767832244926,-1000.0,0.00017364,2]
[400797190,1767832244936,-827.5,0.00017366,2]
[400797192,1767832244946,-300.0,0.00017367,2]
[400797194,1767832244955,-300.0,0.00017367,2]
[400797196,1767832244965,-836.52086768,0.00017372,2]
[400797198,1767832244975,-300.0,0.00017373,2]
[400797200,1767832244984,-300.0,0.0001738,2]
[400797202,1767832244994,-300.0,0.00017382,2]
[400797204,1767832245004,-300.0,0.00017384,2]
[400797206,1767832245020,-300.0,0.00017385,2]
[400797208,1767832245037,-1000.0,0.00017393,2]
[400797210,1767832245047,-150.0,0.000174,2]
[400797212,1767832245058,-1000.0,0.000174,2]
[400797214,1767832245081,-300.0,0.00017405,2]
[400797216,1767832245095,-300.0,0.00017408,2]
[400797218,1767832245106,-634.2954026,0.00017409,2]
[400797220,1767832245117,-642.94,0.00017416,2]
[400797223,1767832245127,-287.61899177,0.00017416,2]
[400797252,1767832245417,-334.5472959,0.00017416,2]
[400797254,1767832245428,-300.0,0.0001742,2]
[400797256,1767832245438,-300.0,0.00017423,2]
[400797258,1767832245448,-300.0,0.00017429,2]
[400797260,1767832245457,-827.5,0.00017436,2]
[400797262,1767832245467,-587.0,0.00017436,2]
[400797264,1767832245478,-300.0,0.00017438,2]
[400797267,1767832245488,-300.0,0.00017442,2]
[400797268,1767832245497,-300.0,0.00017444,2]
[400797270,1767832245507,-300.0,0.00017446,2]
[400797272,1767832245517,-300.0,0.00017446,2]
[400797274,1767832245526,-300.0,0.00017447,2]
[400797276,1767832245536,-300.0,0.00017449,2]
[400797278,1767832245546,-300.0,0.00017449,2]
[400797280,1767832245555,-300.0,0.00017452,2]
[400797282,1767832245565,-300.0,0.00017455,2]
[400797285,1767832245575,-1000.0,0.00017457,2]
[400797286,1767832245584,-300.0,0.00017458,2]
[400797289,1767832245594,-300.0,0.00017459,2]
[400797291,1767832245604,-1000.0,0.00017462,2]
[400797293,1767832245614,-300.0,0.00017464,2]
[400797295,1767832245623,-300.0,0.00017464,2]
[400797297,1767832245633,-300.0,0.00017465,2]
[400797299,1767832245643,-150.0,0.00017467,2]
[400797301,1767832245653,-244.4,0.00017468,2]
[400797303,1767832245663,-300.0,0.00017469,2]
[400797305,1767832245672,-300.0,0.00017473,2]
[400797307,1767832245682,-1547.27,0.00017475,2]
[400797309,1767832245692,-244.4,0.00017487,2]
[400797310,1767832245703,-300.0,0.00017487,2]
[400797313,1767832245718,-300.0,0.00017487,2]
[400797315,1767832245728,-300.0,0.0001749,2]
[400797317,1767832245738,-300.0,0.00017495,2]
[400797319,1767832245748,-300.0,0.00017497,2]
[400797320,1767832245757,-450.0,0.00017498,2]
[400797322,1767832245767,-300.0,0.00017499,2]
[400797325,1767832245777,-2000.0,0.000175,2]
[400797326,1767832245786,-1600.70015005,0.000175,2]
[400797329,1767832245797,-262.45162544,0.000175,2]
[400797331,1767832245807,-244.4,0.00017506,2]
[400797333,1767832245816,-189.05,0.00017507,2]
[400797335,1767832245827,-827.5,0.00017507,2]
[400797337,1767832245837,-300.0,0.00017511,2]
[400797339,1767832245846,-300.0,0.00017514,2]
[400797341,1767832245855,-300.0,0.00017517,2]
[400797343,1767832245864,-300.0,0.00017524,2]
[400797345,1767832245874,-300.0,0.00017525,2]
[400797347,1767832245883,-300.0,0.00017532,2]
[400797349,1767832245893,-150.0,0.00017533,2]
[400797351,1767832245903,-240.82358149,0.00017534,2]
[400797353,1767832245913,-300.0,0.00017535,2]
[400797355,1767832245922,-300.0,0.00017539,2]
[400797357,1767832245932,-300.0,0.00017539,2]
[400797359,1767832245942,-300.0,0.0001754,2]
[400797360,1767832245952,-300.0,0.00017547,2]
[400797362,1767832245961,-300.0,0.00017548,2]
[400797365,1767832245971,-11726.32467954,0.00017548,2]
[400797367,1767832245981,-15916.11538226,0.00017548,2]
[400797369,1767832245992,-1000.0,0.00017549,2]
[400797371,1767832246002,-1000.0,0.0001755,2]
[400797373,1767832246012,-300.0,0.00017555,2]
[400797375,1767832246021,-300.0,0.00017557,2]
[400797377,1767832246031,-300.0,0.00017557,2]
[400797379,1767832246040,-300.0,0.00017559,2]
[400797381,1767832246050,-300.0,0.0001756,2]
[400797383,1767832246059,-300.0,0.00017561,2]
[400797385,1767832246069,-300.0,0.00017564,2]
[400797387,1767832246078,-300.0,0.00017564,2]
[400797389,1767832246090,-300.0,0.00017577,2]
[400797391,1767832246100,-827.5,0.00017577,2]
[400797393,1767832246109,-300.0,0.00017578,2]
[400797395,1767832246120,-300.0,0.00017582,2]
[400797397,1767832246130,-300.0,0.00017585,2]
[400797400,1767832246140,-300.0,0.00017591,2]
[400797402,1767832246150,-1155.0,0.00017592,2]
[400797404,1767832246161,-1000.0,0.00017593,2]
[400797406,1767832246170,-300.0,0.00017597,2]
[400797408,1767832246180,-2351.0,0.00017597,2]
[400797410,1767832246189,-150.0,0.000176,2]
[400797412,1767832246200,-1000.0,0.000176,2]
[400797414,1767832246210,-300.0,0.00017605,2]
[400797416,1767832246220,-300.0,0.00017608,2]
[400797418,1767832246230,-300.0,0.0001761,2]
[400797420,1767832246240,-300.0,0.00017616,2]
[400797422,1767832246249,-1123.72081772,0.00017616,2]
[400797424,1767832246260,-300.0,0.0001762,2]
[400797426,1767832246269,-300.0,0.0001763,2]
[400797428,1767832246279,-1000.0,0.00017635,2]
[400797430,1767832246289,-1000.0,0.00017635,2]
[400797432,1767832246301,-4936.02146803,0.0001764,2]
[400797434,1767832246311,-300.0,0.00017642,2]
[400797436,1767832246321,-827.5,0.00017648,2]
[400797438,1767832246331,-300.0,0.00017651,2]
[400797440,1767832246340,-300.0,0.00017653,2]
[400797442,1767832246350,-300.0,0.00017657,2]
[400797444,1767832246360,-1000.0,0.00017657,2]
[400797446,1767832246370,-300.0,0.00017658,2]
[400797449,1767832246381,-300.0,0.00017658,2]
[400797451,1767832246391,-300.0,0.00017665,2]
[400797453,1767832246401,-150.0,0.00017667,2]
[400797455,1767832246414,-500.0,0.00017671,2]
[400797457,1767832246424,-1155.0,0.00017672,2]
[400797459,1767832246434,-1155.0,0.00017677,2]
[400797461,1767832246447,-162.0,0.0001768,2]
[400797463,1767832246458,-300.0,0.0001768,2]
[400797465,1767832246468,-300.0,0.00017683,2]
[400797467,1767832246477,-300.0,0.00017683,2]
[400797468,1767832246487,-300.0,0.00017685,2]
[400797471,1767832246497,-300.0,0.00017688,2]
[400797473,1767832246507,-300.0,0.00017689,2]
[400797474,1767832246517,-640.24385345,0.00017691,2]
[400797477,1767832246527,-1000.0,0.00017692,2]
[400797479,1767832246539,-1000.0,0.00017696,2]
[400797481,1767832246548,-1123.72081772,0.00017699,2]
[400797483,1767832246558,-10000.0,0.000177,2]
[400797485,1767832246568,-4299.1132784,0.000177,2]
[400797487,1767832246579,-262.45162544,0.000177,2]
[400797489,1767832246588,-5453.0,0.00017702,2]
[400797491,1767832246598,-24.18599661,0.00017704,2]
[400797566,1767832247322,-275.81400339,0.00017704,2]
[400797579,1767832247440,-300.0,0.00017705,2]
[400797581,1767832247452,-300.0,0.00017705,2]
[400797583,1767832247461,-25000.0,0.00017706,3]
[400797585,1767832247470,-1000.0,0.00017707,2]
[400797587,1767832247480,-1000.0,0.00017709,2]
[400797589,1767832247490,-1000.0,0.00017715,2]
[400797591,1767832247500,-25000.0,0.00017715,3]
[400797593,1767832247508,-827.5,0.00017718,2]
[400797595,1767832247518,-1155.0,0.0001772,2]
[400797597,1767832247528,-151.0,0.00017721,2]
[400797598,1767832247537,-25000.0,0.00017724,3]
[400797599,1767832247547,-1000.0,0.00017728,2]
[400797600,1767832247557,-300.0,0.00017732,2]
[400797601,1767832247567,-25000.0,0.00017733,3]
[400797602,1767832247577,-150.0,0.00017733,2]
[400797603,1767832247586,-482.63,0.00017737,2]
[400797604,1767832247596,-482.63,0.00017737,2]
[400797605,1767832247606,-482.63,0.00017737,2]
[400797606,1767832247615,-482.63,0.00017737,2]
[400797607,1767832247624,-709.93,0.00017737,2]
[400797608,1767832247634,-1111.5,0.00017737,2]
[400797609,1767832247643,-556.08,0.00017737,2]
[400797610,1767832247653,-556.08,0.00017737,2]